fUSD/lending_fUSD_20240814
["ID","MTS","AMOUNT","RATE_DAILY","PERIOD"]
[334836763,1723606280253,-717.25,0.00014794,2]
[334836764,1723606280262,-500.0,0.00014794,2]
[334836765,1723606280271,-1091.13,0.00014794,2]
[334836766,1723606280280,-641.38,0.00014794,2]
[334836767,1723606280290,-773.36,0.00014794,2]
[334836768,1723606280299,-500.0,0.00014794,2]
[334836769,1723606280309,-500.0,0.00014794,2]
[334836770,1723606280318,-500.0,0.00014794,2]
[334836771,1723606280328,-500.0,0.00014794,2]
[334836772,1723606280338,-558.45,0.00014794,2]
[334836773,1723606280347,-829.14,0.00014794,2]
[334836774,1723606280360,-500.0,0.00014794,2]
[334836775,1723606280369,-500.0,0.00014794,2]
[334836776,1723606280378,-1184.9,0.00014794,2]
[334836777,1723606280387,-500.0,0.00014794,2]
[334836778,1723606280396,-1293.99,0.00014794,2]
[334836779,1723606280405,-1677.47,0.00014794,2]
[334836780,1723606280415,-500.0,0.00014794,2]
[334836781,1723606280424,-500.0,0.00014794,2]
[334836782,1723606280433,-500.0,0.00014794,2]
[334836783,1723606280443,-500.0,0.00014794,2]
[334836784,1723606280452,-500.0,0.00014794,2]
[334836785,1723606280462,-984.09,0.00014794,2]
[334836786,1723606280471,-654.41,0.00014794,2]
[334836787,1723606280480,-629.08075537,0.00014794,2]
[334836788,1723606280490,-1087.78,0.00014794,2]
[334836789,1723606280499,-578.16,0.00014794,2]
[334836790,1723606280508,-500.0,0.00014794,2]
[334836791,1723606280518,-1251.36,0.00014794,2]
[334836792,1723606280527,-807.41,0.00014794,2]
[334836793,1723606280537,-500.0,0.00014794,2]
[334836794,1723606280547,-500.0,0.00014794,2]
[334836795,1723606280556,-500.0,0.00014794,2]
[334836796,1723606280566,-500.0,0.00014794,2]
[334836797,1723606280576,-944.36,0.00014794,2]
[334836798,1723606280585,-500.0,0.00014794,2]
[334836799,1723606280595,-1708.58,0.00014794,2]
[334836800,1723606280608,-500.0,0.00014794,2]
[334836801,1723606280618,-500.0,0.00014794,2]
[334836802,1723606280628,-500.0,0.00014794,2]
[334836803,1723606280638,-500.27,0.00014794,2]
[334836804,1723606280647,-646.54,0.00014794,2]
[334836805,1723606280657,-500.0,0.00014794,2]
[334836806,1723606280667,-784.06,0.00014794,2]
[334836807,1723606280678,-500.0,0.00014794,2]
[334836808,1723606280687,-835.29,0.00014794,2]
[334836809,1723606280697,-1238.23,0.00014794,2]
[334836810,1723606280707,-500.0,0.00014794,2]
[334836811,1723606280717,-463.83426776,0.00014794,2]
[334836812,1723606280727,-1000.0,0.00014794,2]
[334836813,1723606280736,-1139.49,0.00014794,2]
[334836814,1723606280746,-500.0,0.00014794,2]
[334836815,1723606280759,-537.59,0.00014794,2]
[334836816,1723606280769,-500.0,0.00014794,2]
[334836817,1723606280780,-500.0,0.00014794,2]
[334836818,1723606280791,-1034.38,0.00014794,2]
[334836819,1723606280801,-500.0,0.00014794,2]
[334836820,1723606280811,-500.0,0.00014794,2]
[334836821,1723606280821,-500.0,0.00014794,2]
[334836822,1723606280831,-997.12,0.00014794,2]
[334836823,1723606280840,-528.15,0.00014794,2]
[334836824,1723606280850,-500.0,0.00014794,2]
[334836825,1723606280862,-1181.95,0.00014794,2]
[334836826,1723606280872,-1270.94,0.00014794,2]
[334836827,1723606280883,-780.85,0.00014794,2]
[334836828,1723606280892,-500.0,0.00014794,2]
[334836829,1723606280903,-500.0,0.00014794,2]
[334836830,1723606280912,-1098.8,0.00014794,2]
[334836831,1723606280923,-1556.42,0.00014794,2]
[334836832,1723606280932,-500.0,0.00014794,2]
[334836833,1723606280942,-500.0,0.00014794,2]
[334836834,1723606280952,-500.0,0.00014794,2]
[334836835,1723606280961,-500.0,0.00014794,2]
[334836836,1723606280971,-500.0,0.00014794,2]
[334836837,1723606280981,-500.0,0.00014794,2]
[334836838,1723606280992,-500.0,0.00014794,2]
[334836839,1723606281002,-500.0,0.00014794,2]
[334836840,1723606281012,-786.57,0.00014794,2]
[334836841,1723606281022,-509.65913674,0.00014794,2]
[334836842,1723606281032,-1599.24,0.00014794,2]
[334836843,1723606281042,-500.0,0.00014794,2]
[334836844,1723606281053,-1240.35,0.00014794,2]
[334836845,1723606281063,-500.0,0.00014794,2]
[334836846,1723606281072,-2176.43,0.00014794,2]
[334836847,1723606281082,-500.0,0.00014794,2]
[334836848,1723606281092,-501.94,0.00014794,2]
[334836849,1723606281102,-500.0,0.00014794,2]
[334836850,1723606281113,-664.12,0.00014794,2]
[334836851,1723606281123,-2390.4,0.00014794,2]
[334836852,1723606281133,-500.0,0.00014794,2]
[334836853,1723606281143,-500.0,0.00014794,2]
[334836854,1723606281153,-500.0,0.00014794,2]
[334836855,1723606281167,-500.0,0.00014794,2]
[334836856,1723606281176,-500.0,0.00014794,2]
[334836857,1723606281186,-447.63414464,0.00014794,2]
[334836858,1723606281196,-854.04,0.00014794,2]
[334836859,1723606281206,-500.0,0.00014794,2]
[334836860,1723606281216,-618.23,0.00014794,2]
[334836861,1723606281226,-495.0,0.00014794,2]
[334836862,1723606281236,-1391.15,0.00014794,2]
[334836863,1723606281246,-500.0,0.00014794,2]
[334836864,1723606281257,-507.11982397,0.00014794,2]
[334836865,1723606281267,-846.62,0.00014794,2]
[334836866,1723606281276,-1141.67,0.00014794,2]
[334836867,1723606281286,-1092.78,0.00014794,2]
[334836868,1723606281296,-500.0,0.00014794,2]
[334836869,1723606281305,-247.8719962,0.00014794,2]
[334836870,1723606281315,-500.0,0.00014794,2]
[334836871,1723606281325,-500.0,0.00014794,2]
[334836872,1723606281336,-500.0,0.00014794,2]
[334836873,1723606281346,-500.0,0.00014794,2]
[334836874,1723606281357,-652.68,0.00014794,2]
[334836875,1723606281367,-500.0,0.00014794,2]
[334836876,1723606281376,-1558.62,0.00014794,2]
[334836877,1723606281385,-500.0,0.00014794,2]
[334836878,1723606281395,-500.0,0.00014794,2]
[334836879,1723606281405,-500.0,0.00014794,2]
[334836880,1723606281415,-433.12582478,0.00014794,2]
[334836881,1723606281424,-500.0,0.00014794,2]
[334836882,1723606281434,-500.0,0.00014794,2]
[334836883,1723606281444,-1837.2,0.00014794,2]
[334836884,1723606281454,-500.0,0.00014794,2]
[334836885,1723606281464,-827.46,0.00014794,2]
[334836886,1723606281474,-584.71,0.00014794,2]
[334836887,1723606281484,-1094.18,0.00014794,2]
[334836888,1723606281494,-500.0,0.00014794,2]
[334836889,1723606281504,-923.76,0.00014794,2]
[334836890,1723606281513,-500.0,0.00014794,2]
[334836891,1723606281523,-500.0,0.00014794,2]
[334836892,1723606281534,-2601.81,0.00014794,2]
[334836893,1723606281544,-1963.59,0.00014794,2]
[334836894,1723606281554,-638.65,0.00014794,2]
[334836895,1723606281564,-1049.63,0.00014794,2]
[334836896,1723606281574,-532.86,0.00014794,2]
[334836897,1723606281584,-663.4,0.00014794,2]
[334836898,1723606281593,-1589.14,0.00014794,2]
[334836899,1723606281605,-808.44,0.00014794,2]
[334836900,1723606281615,-500.0,0.00014794,2]
[334836901,1723606281626,-500.0,0.00014794,2]
[334836902,1723606281635,-500.0,0.00014794,2]
[334836903,1723606281645,-1726.13,0.00014794,2]
[334836904,1723606281656,-2138.89,0.00014794,2]
[334836905,1723606281666,-500.0,0.00014794,2]
[334836906,1723606281675,-429.81972018,0.00014794,2]
[334836907,1723606281685,-500.0,0.00014794,2]
[334836908,1723606281695,-500.0,0.00014794,2]
[334836909,1723606281705,-1206.0,0.00014794,2]
[334836910,1723606281715,-503.76360731,0.00014794,2]
[334836911,1723606281726,-734.71,0.00014794,2]
[334836912,1723606281736,-500.0,0.00014794,2]
[334836913,1723606281747,-1244.17,0.00014794,2]
[334836914,1723606281759,-720.69,0.00014794,2]
[334836915,1723606281769,-744.42,0.00014794,2]
[334836916,1723606281779,-500.0,0.00014794,2]
[334836917,1723606281788,-1424.96,0.00014794,2]
[334836918,1723606281798,-500.0,0.00014794,2]
[334836919,1723606281807,-481.48416366,0.00014794,2]
[334836920,1723606281817,-500.0,0.00014794,2]
[334836921,1723606281827,-500.0,0.00014794,2]
[334836922,1723606281836,-500.0,0.00014794,2]
[334836923,1723606281847,-1700.15,0.00014794,2]
[334836924,1723606281859,-500.0,0.00014794,2]
[334836925,1723606281876,-1009.26,0.00014794,2]
[334836926,1723606281886,-1729.02,0.00014794,2]
[334836927,1723606281896,-647.73448349,0.00014794,2]
[334836928,1723606281906,-500.0,0.00014794,2]
[334836929,1723606281916,-500.0,0.00014794,2]
[334836930,1723606281926,-523.38755761,0.00014794,2]
[334836931,1723606281936,-806.14,0.00014794,2]
[334836932,1723606281946,-715.73,0.00014794,2]
[334836933,1723606281956,-1851.1,0.00014794,2]
[334836934,1723606281966,-1632.72,0.00014794,2]
[334836935,1723606281976,-641.85,0.00014794,2]
[334836936,1723606281986,-500.0,0.00014794,2]
[334836937,1723606281997,-2952.62,0.00014794,2]
[334836938,1723606282006,-500.0,0.00014794,2]
[334836939,1723606282017,-500.0,0.00014794,2]
[334836940,1723606282027,-2012.27,0.00014794,2]
[334836941,1723606282037,-593.57,0.00014794,2]
[334836942,1723606282047,-538.72,0.00014794,2]
[334836943,1723606282056,-1377.11,0.00014794,2]
[334836944,1723606282066,-711.28,0.00014794,2]
[334836945,1723606282076,-1760.83,0.00014794,2]
[334836946,1723606282086,-389.44625896,0.00014794,2]
[334836947,1723606282095,-2220.15,0.00014794,2]
[334836948,1723606282106,-500.0,0.00014794,2]
[334836949,1723606282115,-500.0,0.00014794,2]
[334836950,1723606282125,-500.0,0.00014794,2]
[334836951,1723606282135,-1603.72,0.00014794,2]
[334836952,1723606282145,-500.0,0.00014794,2]
[334836953,1723606282155,-500.0,0.00014794,2]
[334836954,1723606282165,-500.0,0.00014794,2]
[334836955,1723606282175,-500.0,0.00014794,2]
[334836956,1723606282185,-2425.01,0.00014794,2]
[334836957,1723606282194,-500.0,0.00014794,2]
[334836958,1723606282204,-500.0,0.00014794,2]
[334836959,1723606282214,-900.53,0.00014794,2]
[334836960,1723606282224,-826.53,0.00014794,2]
[334836961,1723606282233,-500.0,0.00014794,2]
[334836962,1723606282244,-1526.93,0.00014794,2]
[334836963,1723606282253,-500.0,0.00014794,2]
[334836964,1723606282263,-500.0,0.00014794,2]
[334836965,1723606282273,-704.57,0.00014794,2]
[334836966,1723606282282,-1550.13,0.00014794,2]
[334836967,1723606282292,-767.88,0.00014794,2]
[334836968,1723606282302,-516.5,0.00014794,2]
[334836969,1723606282311,-500.0,0.00014794,2]
[334836970,1723606282321,-648.78,0.00014794,2]
[334836971,1723606282331,-932.89,0.00014794,2]
[334836972,1723606282340,-640.05,0.00014794,2]
[334836973,1723606282351,-1388.76,0.00014794,2]
[334836974,1723606282368,-637.78,0.00014794,2]
[334836975,1723606282377,-2460.02,0.00014794,2]
[334836976,1723606282387,-161.84295857,0.00014794,2]
[334836977,1723606282397,-500.0,0.00014794,2]
[334836978,1723606282407,-1435.53,0.00014794,2]
[334836979,1723606282418,-673.72,0.00014794,2]
[334836980,1723606282428,-597.05,0.00014794,2]
[334836981,1723606282438,-1571.68,0.00014794,2]
[334836982,1723606282448,-1001.8,0.00014794,2]
[334836983,1723606282458,-162.33116667,0.00014794,2]
[334836984,1723606282468,-500.0,0.00014794,2]
[334836985,1723606282478,-500.0,0.00014794,2]
[334836986,1723606282488,-1636.49,0.00014794,2]
[334836987,1723606282498,-500.0,0.00014794,2]
[334836988,1723606282508,-680.42,0.00014794,2]
[334836989,1723606282517,-891.1,0.00014794,2]
[334836990,1723606282528,-500.0,0.00014794,2]
[334836991,1723606282538,-500.0,0.00014794,2]
[334836992,1723606282547,-1446.08,0.00014794,2]
[334836993,1723606282557,-596.24,0.00014794,2]
[334836994,1723606282567,-1020.89,0.00014794,2]
[334836995,1723606282577,-2129.32,0.00014794,2]
[334836996,1723606282588,-500.0,0.00014794,2]
[334836997,1723606282598,-500.0,0.00014794,2]
[334836998,1723606282610,-500.0,0.00014794,2]
[334836999,1723606282620,-500.0,0.00014794,2]
[334837000,1723606282630,-500.0,0.00014794,2]
[334837001,1723606282640,-2246.07,0.00014794,2]
[334837002,1723606282650,-2352.39,0.00014794,2]
[334837003,1723606282661,-1415.94,0.00014794,2]
[334837004,1723606282671,-500.0,0.00014794,2]
[334837005,1723606282680,-500.0,0.00014794,2]
[334837006,1723606282690,-1289.28,0.00014794,2]
[334837007,1723606282700,-500.0,0.00014794,2]
[334837008,1723606282710,-1181.14,0.00014794,2]
[334837009,1723606282719,-500.0,0.00014794,2]
[334837010,1723606282729,-1218.75,0.00014794,2]
[334837011,1723606282740,-1007.49,0.00014794,2]
[334837012,1723606282751,-738.52,0.00014794,2]
[334837013,1723606282761,-500.0,0.00014794,2]
[334837014,1723606282773,-1335.68,0.00014794,2]
[334837015,1723606282783,-500.0,0.00014794,2]
[334837016,1723606283090,-1418.41,0.00014794,2]
[334837017,1723606283101,-500.0,0.00014794,2]
[334837018,1723606283112,-880.3,0.00014794,2]
[334837019,1723606283122,-506.25081626,0.00014794,2]
[334837020,1723606283131,-861.16,0.00014794,2]
[334837021,1723606283141,-1333.35,0.00014794,2]
[334837022,1723606283151,-500.61042323,0.00014794,2]
[334837023,1723606283160,-1083.16,0.00014794,2]
[334837024,1723606283170,-2563.84,0.00014794,2]
[334837025,1723606283180,-500.0,0.00014794,2]
[334837026,1723606283190,-500.0,0.00014794,2]
[334837027,1723606283201,-507.42,0.00014794,2]
[334837028,1723606283210,-500.0,0.00014794,2]
[334837029,1723606283220,-501.2377002,0.00014794,2]
[334837030,1723606283230,-500.0,0.00014794,2]
[334837031,1723606283240,-573.3,0.00014794,2]
[334837032,1723606283250,-500.0,0.00014794,2]
[334837033,1723606283260,-580.91,0.00014794,2]
[334837034,1723606283270,-530.84,0.00014794,2]
[334837035,1723606283280,-596.67,0.00014794,2]
[334837036,1723606283289,-1626.94,0.00014794,2]
[334837037,1723606283299,-500.0,0.00014794,2]
[334837038,1723606283309,-614.30831533,0.00014794,2]
[334837039,1723606283319,-1291.86,0.00014794,2]
[334837040,1723606283329,-500.0,0.00014794,2]
[334837041,1723606283338,-718.25,0.00014794,2]
[334837042,1723606283348,-500.0,0.00014794,2]
[334837043,1723606283359,-1403.87,0.00014794,2]
[334837044,1723606283369,-1253.31,0.00014794,2]
[334837045,1723606283379,-500.0,0.00014794,2]
[334837046,1723606283388,-500.0,0.00014794,2]
[334837047,1723606283397,-500.0,0.00014794,2]
[334837048,1723606283407,-500.0,0.00014794,2]
[334837049,1723606283416,-1266.98,0.00014794,2]
[334837050,1723606283426,-990.05,0.00014794,2]
[334837051,1723606283436,-785.78,0.00014794,2]
[334837052,1723606283446,-961.72,0.00014794,2]
[334837053,1723606283456,-500.0,0.00014794,2]
[334837054,1723606283465,-500.0,0.00014794,2]
[334837055,1723606283475,-748.73,0.00014794,2]
[334837056,1723606283485,-928.23,0.00014794,2]
[334837057,1723606283495,-986.7,0.00014794,2]
[334837058,1723606283504,-1475.15,0.00014794,2]
[334837059,1723606283514,-1516.9,0.00014794,2]
[334837060,1723606283523,-500.0,0.00014794,2]
[334837061,1723606283537,-520.36,0.00014794,2]
[334837062,1723606283547,-724.33,0.00014794,2]
[334837063,1723606283557,-1066.62,0.00014794,2]
[334837064,1723606283566,-500.0,0.00014794,2]
[334837065,1723606283576,-500.0,0.00014794,2]
[334837066,1723606283586,-500.0,0.00014794,2]
[334837067,1723606283595,-1339.64,0.00014794,2]
[334837068,1723606283605,-2145.04,0.00014794,2]
[334837069,1723606283615,-500.0,0.00014794,2]
[334837070,1723606283624,-1219.12,0.00014794,2]
[334837071,1723606283634,-2422.53,0.00014794,2]
[334837072,1723606283643,-770.76,0.00014794,2]
[334837073,1723606283653,-500.0,0.00014794,2]
[334837074,1723606283663,-500.0,0.00014794,2]
[334837075,1723606283672,-500.0,0.00014794,2]
[334837076,1723606283682,-613.62,0.00014794,2]
[334837077,1723606283691,-500.0,0.00014794,2]
[334837078,1723606283701,-1116.49,0.00014794,2]
[334837079,1723606283710,-2001.85,0.00014794,2]
[334837080,1723606283720,-1590.84,0.00014794,2]
[334837081,1723606283729,-500.0,0.00014794,2]
[334837082,1723606283739,-910.1,0.00014794,2]
[334837083,1723606283749,-500.0,0.00014794,2]
[334837084,1723606283761,-500.0,0.00014794,2]
[334837085,1723606283771,-500.0,0.00014794,2]
[334837086,1723606283782,-500.0,0.00014794,2]
[334837087,1723606283792,-500.0,0.00014794,2]
[334837088,1723606283801,-500.0,0.00014794,2]
[334837089,1723606283811,-1610.3,0.00014794,2]
[334837090,1723606283821,-875.89,0.00014794,2]
[334837091,1723606283830,-500.0,0.00014794,2]
[334837092,1723606283840,-500.0,0.00014794,2]
[334837093,1723606283850,-500.0,0.00014794,2]
[334837094,1723606283862,-500.0,0.00014794,2]
[334837095,1723606283871,-646.94,0.00014794,2]
[334837096,1723606283881,-805.15,0.00014794,2]
[334837097,1723606283891,-2687.23,0.00014794,2]
[334837098,1723606283901,-500.0,0.00014794,2]
[334837099,1723606283910,-500.0,0.00014794,2]
[334837100,1723606283920,-516.2615172,0.00014794,2]
[334837101,1723606283930,-1026.7,0.00014794,2]
[334837102,1723606283939,-500.0,0.00014794,2]
[334837103,1723606283949,-500.0,0.00014794,2]
[334837104,1723606283958,-2055.39,0.00014794,2]
[334837105,1723606283967,-2059.88,0.00014794,2]
[334837106,1723606283977,-500.0,0.00014794,2]
[334837107,1723606283987,-500.0,0.00014794,2]
[334837108,1723606283997,-500.0,0.00014794,2]
[334837109,1723606284007,-500.0,0.00014794,2]
[334837110,1723606284016,-1751.88,0.00014794,2]
[334837111,1723606284026,-500.0,0.00014794,2]
[334837112,1723606284035,-500.0,0.00014794,2]
[334837113,1723606284044,-545.63,0.00014794,2]
[334837114,1723606284054,-733.22,0.00014794,2]
[334837115,1723606284064,-589.61,0.00014794,2]
[334837116,1723606284074,-500.0,0.00014794,2]
[334837117,1723606284083,-1476.63,0.00014794,2]
[334837118,1723606284093,-507.19388798,0.00014794,2]
[334837119,1723606284103,-500.0,0.00014794,2]
[334837120,1723606284115,-2316.7,0.00014794,2]
[334837121,1723606284125,-500.0,0.00014794,2]
[334837122,1723606284135,-975.54,0.00014794,2]
[334837123,1723606284145,-1352.79,0.00014794,2]
[334837124,1723606284155,-500.0,0.00014794,2]
[334837125,1723606284164,-500.0,0.00014794,2]
[334837126,1723606284174,-683.26,0.00014794,2]
[334837127,1723606284183,-1857.42,0.00014794,2]
[334837128,1723606284193,-1064.71,0.00014794,2]
[334837129,1723606284202,-500.0,0.00014794,2]
[334837130,1723606284212,-500.0,0.00014794,2]
[334837131,1723606284221,-500.0,0.00014794,2]
[334837132,1723606284230,-2140.46,0.00014794,2]
[334837133,1723606284239,-500.0,0.00014794,2]
[334837134,1723606284249,-500.0,0.00014794,2]
[334837135,1723606284258,-2002.6,0.00014794,2]
[334837136,1723606284268,-500.0,0.00014794,2]
[334837137,1723606284277,-994.38,0.00014794,2]
[334837138,1723606284287,-1214.76,0.00014794,2]
[334837139,1723606284296,-500.0,0.00014794,2]
[334837140,1723606284306,-687.99,0.00014794,2]
[334837141,1723606284315,-500.0,0.00014794,2]
[334837142,1723606284325,-875.38,0.00014794,2]
[334837143,1723606284334,-2256.94,0.00014794,2]
[334837144,1723606284344,-500.0,0.00014794,2]
[334837145,1723606284353,-500.0,0.00014794,2]
[334837146,1723606284365,-542.84,0.00014794,2]
[334837147,1723606284375,-500.0,0.00014794,2]
[334837148,1723606284384,-1186.97,0.00014794,2]
[334837149,1723606284393,-500.0,0.00014794,2]
[334837150,1723606284403,-500.0,0.00014794,2]
[334837151,1723606284413,-2396.58,0.00014794,2]
[334837152,1723606284422,-500.0,0.00014794,2]
[334837153,1723606284431,-500.0,0.00014794,2]
[334837154,1723606284441,-500.0,0.00014794,2]
[334837155,1723606284450,-500.0,0.00014794,2]
[334837156,1723606284460,-500.0,0.00014794,2]
[334837157,1723606284469,-500.0,0.00014794,2]
[334837158,1723606284479,-1901.88,0.00014794,2]
[334837159,1723606284487,-500.0,0.00014794,2]
[334837160,1723606284497,-926.19,0.00014794,2]
[334837161,1723606284506,-745.53,0.00014794,2]
[334837162,1723606284515,-1384.68,0.00014794,2]
[334837163,1723606284525,-614.08,0.00014794,2]
[334837164,1723606284534,-500.0,0.00014794,2]
[334837165,1723606284543,-500.0,0.00014794,2]
[334837166,1723606284552,-500.0,0.00014794,2]
[334837167,1723606284561,-500.0,0.00014794,2]
[334837168,1723606284571,-699.17,0.00014794,2]
[334837169,1723606284580,-610.28,0.00014794,2]
[334837170,1723606284589,-500.0,0.00014794,2]
[334837171,1723606284597,-500.0,0.00014794,2]
[334837172,1723606284607,-770.51,0.00014794,2]
[334837173,1723606284617,-180.72217756,0.00014794,2]
[334837174,1723606284627,-1153.37,0.00014794,2]
[334837175,1723606284636,-694.46,0.00014794,2]
[334837176,1723606284646,-1462.38,0.00014794,2]
[334837177,1723606284655,-500.0,0.00014794,2]
[334837178,1723606284664,-1122.17,0.00014794,2]
[334837179,1723606284674,-500.0,0.00014794,2]
[334837180,1723606284683,-1156.13,0.00014794,2]
[334837181,1723606284692,-500.0,0.00014794,2]
[334837182,1723606284702,-500.0,0.00014794,2]
[334837183,1723606284711,-500.0,0.00014794,2]
[334837184,1723606284720,-928.32,0.00014794,2]
[334837185,1723606284731,-500.0,0.00014794,2]
[334837186,1723606284742,-515.31,0.00014794,2]
[334837187,1723606284755,-1786.82,0.00014794,2]
[334837188,1723606284764,-500.0,0.00014794,2]
[334837189,1723606284773,-1783.67,0.00014794,2]
[334837190,1723606284783,-500.0,0.00014794,2]
[334837191,1723606284792,-1322.93,0.00014794,2]
[334837192,1723606284801,-500.0,0.00014794,2]
[334837193,1723606284810,-5125.24,0.00014794,2]
[334837194,1723606284819,-924.38,0.00014794,2]
[334837195,1723606284829,-500.0,0.00014794,2]
[334837196,1723606284838,-539.32,0.00014794,2]
[334837197,1723606284847,-500.0,0.00014794,2]
[334837198,1723606284860,-2719.36,0.00014794,2]
[334837199,1723606284869,-1170.65,0.00014794,2]
[334837200,1723606284878,-770.29,0.00014794,2]
[334837201,1723606284887,-1497.14,0.00014794,2]
[334837202,1723606284896,-553.66,0.00014794,2]
[334837203,1723606284906,-16400.66,0.00014794,2]
[334837204,1723606284915,-564.36,0.00014794,2]
[334837205,1723606284924,-1305.03,0.00014794,2]
[334837206,1723606284934,-500.0,0.00014794,2]
[334837207,1723606284944,-500.0,0.00014794,2]
[334837208,1723606284953,-5173.19,0.00014794,2]
[334837209,1723606284963,-500.0,0.00014794,2]
[334837210,1723606284973,-1004.75,0.00014794,2]
[334837211,1723606284982,-500.0,0.00014794,2]
[334837212,1723606284992,-1530.58,0.00014794,2]
[334837213,1723606285001,-500.0,0.00014794,2]
[334837214,1723606285011,-1256.42,0.00014794,2]
[334837215,1723606285021,-1870.61,0.00014794,2]
[334837216,1723606285030,-451.31640749,0.00014794,2]
[334837217,1723606285041,-9972.88245526,0.00014794,2]
[334837218,1723606285792,-2623.89754474,0.00014794,2]
[334837219,1723606285801,-842.61,0.00014794,2]
[334837220,1723606285811,-500.0,0.00014794,2]
[334837221,1723606285821,-1820.64397285,0.00014794,2]
[334837222,1723606285833,-2565.0,0.00014794,2]
[334837223,1723606285845,-659.2,0.00014794,2]
[334837224,1723606285857,-1038.59602715,0.00014794,2]
[334837225,1723606285868,-500.0,0.00014794,2]
[334837226,1723606285879,-2906.96,0.00014794,2]
[334837227,1723606285889,-1592.04,0.00014794,2]
[334837228,1723606285899,-3359.26,0.00014794,2]
[334837229,1723606285909,-750.28,0.00014794,2]
[334837230,1723606285919,-500.0,0.00014794,2]
[334837231,1723606285929,-1862.96,0.00014794,2]
[334837232,1723606285939,-1588.9,0.00014794,2]
[334837233,1723606285949,-1891.12,0.00014794,2]
[334837234,1723606285959,-11429.35,0.00014794,2]
[334837235,1723606285969,-532.54714343,0.00014794,2]
[334837236,1723606285978,-500.0,0.00014794,2]
[334837237,1723606285987,-658.23,0.00014794,2]
[334837238,1723606285997,-2138.35,0.00014794,2]
[334837239,1723606286007,-2102.25,0.00014794,2]
[334837240,1723606286016,-1413.63,0.00014794,2]
[334837241,1723606286026,-500.0,0.00014794,2]
[334837242,1723606286036,-500.0,0.00014794,2]
[334837243,1723606286045,-500.0,0.00014794,2]
[334837244,1723606286055,-500.0,0.00014794,2]
[334837245,1723606286065,-636.18,0.00014794,2]
[334837246,1723606286075,-1399.72,0.00014794,2]
[334837247,1723606286084,-5737.21,0.00014794,2]
[334837248,1723606286094,-1253.23,0.00014794,2]
[334837249,1723606286104,-2124.1,0.00014794,2]
[334837250,1723606286115,-651.66,0.00014794,2]
[334837251,1723606286125,-2351.24,0.00014794,2]
[334837252,1723606286134,-817.32,0.00014794,2]
[334837253,1723606286143,-2185.53,0.00014794,2]
[334837254,1723606286152,-500.0,0.00014794,2]
[334837255,1723606286162,-1352.61,0.00014794,2]
[334837256,1723606286171,-591.07581188,0.00014794,2]
[334837257,1723606286180,-684.57,0.00014794,2]
[334837258,1723606286190,-778.49,0.00014794,2]
[334837259,1723606286200,-500.0,0.00014794,2]
[334837260,1723606286210,-27654.11,0.00014794,2]
[334837261,1723606286219,-500.0,0.00014794,2]
[334837262,1723606286228,-1814.01,0.00014794,2]